bitfinex/quotes_ETHUSD_20251213
["timestamp","ask_amount","ask_price","bid_price","bid_amount"]
[1765629257614,20.66286692,3118.9,3118.8,0.002]
[1765629261291,20.42049292,3118.9,3118.8,0.002]
[1765629262520,9.09588192,3118.9,3118.8,0.002]
[1765629262711,4.71439189,3118.9,3118.8,0.002]
[1765629263217,5.18879189,3118.9,3118.8,0.002]
[1765629263419,5.66269189,3118.9,3118.8,0.002]
[1765629264292,9.98560748,3118.9,3118.8,0.002]
[1765629267022,9.51170748,3118.9,3118.8,0.002]
[1765629267193,11.49371538,3118.9,3118.8,0.002]
[1765629267596,11.00581538,3118.9,3118.8,0.002]
[1765629268297,11.49371538,3118.9,3118.8,0.002]
[1765629269897,11.0056462,3118.9,3118.8,0.002]
[1765629271397,11.4935462,3118.9,3118.8,0.002]
[1765629273326,11.4935462,3118.9,3118.6,0.002]
[1765629273327,14.69980481,3118.9,3118.6,0.002]
[1765629273624,0.29926768,3118.8,3118.6,0.002]
[1765629273831,0.29926768,3118.7,3118.6,0.002]
[1765629274120,4.62201409,3118.7,3118.6,0.002]
[1765629278823,0.29926768,3118.7,3118.6,0.002]
[1765629284227,4.62201409,3118.7,3118.6,0.002]
[1765629288721,4.62209801,3118.7,3118.6,0.002]
[1765629290740,0.2993516,3118.7,3118.6,0.002]
[1765629295745,0.29945619,3118.7,3118.6,0.002]
[1765629308730,0.29945619,3118.7,3118.6,1.02804434]
[1765629309158,0.29945619,3118.7,3118.6,1.99105045]
[1765629310050,0.29945619,3118.7,3118.6,5.19761749]
[1765629314162,0.29909079,3118.7,3118.6,5.19761749]
[1765629314368,0.29909079,3118.7,3118.6,4.17157315]
[1765629314659,4.32188452,3119.2,3118.6,4.17157315]
[1765629314854,0.29906288,3119.1,3118.6,4.17157315]
[1765629315054,0.29906288,3119.0,3118.6,4.17157315]
[1765629315254,0.29906288,3118.9,3118.6,4.17157315]
[1765629315455,0.29906288,3118.8,3118.7,0.41735732]
[1765629316258,0.29906288,3118.8,3118.7,3.62382155]
[1765629318540,0.29906288,3118.8,3118.7,4.58677512]
[1765629330366,0.29906288,3118.8,3118.7,8.46577512]
[1765629330558,0.4611,3119.6,3118.7,14.87870358]
[1765629330759,0.29909526,3119.5,3118.8,1.70235439]
[1765629330951,0.29909526,3119.4,3118.8,1.70235439]
[1765629331272,0.29909526,3119.3,3118.9,0.4611]
[1765629331481,0.29909526,3119.2,3118.9,0.4611]
[1765629331774,0.29909526,3119.1,3119.0,3.20615581]
[1765629332074,0.29909526,3119.1,3119.0,3.62351313]
[1765629333778,0.29909526,3119.1,3119.0,4.58639561]
[1765629336046,0.29909526,3119.1,3119.0,3.62351313]
[1765629338853,0.29909526,3119.1,3119.0,4.08461313]
[1765629345786,0.4611,3119.7,3119.0,10.49692475]
[1765629345996,0.29919484,3119.6,3119.1,1.04969248]
[1765629346181,0.29919484,3119.5,3119.2,0.506]
[1765629346363,0.29919484,3119.4,3119.2,0.9671]
[1765629346564,0.29919484,3119.3,3119.2,0.9671]
[1765629346763,0.29919484,3119.3,3119.2,0.506]
[1765629346978,0.29919484,3119.3,3119.2,4.73706947]
[1765629360280,1.24229484,3119.3,3119.2,3.66705024]
[1765629360482,1.24229484,3119.3,3118.9,3.879]
[1765629360676,4.79022692,3119.0,3118.9,3.879]
[1765629360877,5.08942176,3119.0,3118.9,3.879]
[1765629361093,1.24229484,3119.0,3118.9,3.879]
[1765629361298,1.24229484,3119.0,3118.9,7.08525861]
[1765629363316,1.24229484,3119.0,3118.8,3.20636142]
[1765629363483,0.96919484,3118.9,3118.8,3.20636142]
[1765629363810,1.43969484,3118.9,3118.8,3.20636142]
[1765629387946,1.43969484,3118.9,3118.7,4.6754163]
[1765629388132,0.78009484,3118.8,3118.7,4.6754163]
[1765629389846,0.78009484,3118.8,3118.7,1.46896902]
[1765629390051,1.26169484,3118.8,3118.7,1.46896902]
[1765629391052,1.26169484,3118.8,3118.7,4.67543325]
[1765629393853,0.78009484,3118.8,3118.7,4.67543325]
[1765629394155,0.29919484,3118.8,3118.7,4.67543325]
[1765629394859,1.26169484,3118.8,3118.7,4.67543325]
[1765629398453,0.78009484,3118.8,3118.7,4.67543325]
[1765629398659,0.29919484,3118.8,3118.7,4.67543325]
[1765629400756,0.78009484,3118.8,3118.7,4.67543325]
[1765629400933,1.26169484,3118.8,3118.7,4.67543325]
[1765629406469,1.26169484,3118.8,3118.7,0.96296902]
[1765629406940,1.26169484,3118.8,3118.7,4.16943325]
[1765629409380,1.26169484,3118.8,3118.7,0.96296902]
[1765629410059,1.26169484,3118.8,3118.7,4.16943325]
[1765629411565,0.78009484,3118.8,3118.7,4.16943325]
[1765629412839,1.26169484,3118.8,3118.7,4.16943325]
[1765629413675,1.26169484,3118.8,3118.6,3.20856704]
[1765629413835,0.29919484,3118.7,3118.6,3.20856704]
[1765629414138,0.29919484,3118.7,3118.6,4.17155461]
[1765629414866,0.29919484,3118.7,3118.6,3.20856704]
[1765629417879,0.75849484,3118.7,3118.6,3.20856704]
[1765629418073,1.22279484,3118.7,3118.6,0.002]
[1765629418264,6.09842669,3118.7,3118.6,0.002]
[1765629422670,6.09871873,3118.7,3118.6,0.002]
[1765629422973,1.77748931,3118.7,3118.6,0.002]
[1765629427566,0.75878688,3118.7,3118.6,0.002]
[1765629427894,0.29948688,3118.7,3118.6,0.002]
[1765629430085,1.22308688,3118.7,3118.6,0.002]
[1765629432355,0.29948688,3118.7,3118.6,0.002]
[1765629435187,0.75878688,3118.7,3118.6,0.002]
[1765629436374,1.22308688,3118.7,3118.6,0.002]
[1765629436887,0.29948688,3118.7,3118.6,0.002]
[1765629437887,0.29948688,3118.7,3118.6,1.08243925]
[1765629438664,0.29948688,3118.7,3118.6,4.28900629]
[1765629445603,0.29948688,3118.7,3118.6,1.08243925]
[1765629448800,0.29948688,3118.7,3118.6,4.28900629]
[1765629452748,0.76578688,3118.7,3118.6,4.28900629]
[1765629453031,0.29948688,3118.7,3118.6,1.08243925]
[1765629453223,0.29948688,3118.7,3118.6,0.002]
[1765629456333,1.22298688,3118.7,3118.6,0.002]
[1765629456531,0.76578688,3118.7,3118.6,0.002]
[1765629456905,0.29948688,3118.7,3118.6,0.002]
[1765629475191,0.29948688,3118.7,3118.6,0.96498139]
[1765629475581,0.29948688,3118.7,3118.6,2.1417135]
[1765629477860,0.29948688,3118.7,3118.6,5.34828054]
[1765629488280,0.29948688,3118.7,3118.6,4.17154843]
[1765629489704,1.24508688,3118.7,3118.6,4.17154843]
[1765629491787,1.24508688,3118.7,3118.6,0.96498139]
[1765629491987,1.24508688,3118.7,3118.6,0.002]
[1765629492697,1.24508688,3118.7,3118.6,3.20856704]
[1765629493383,1.24508688,3118.7,3118.6,0.002]
[1765629494220,1.24508688,3118.7,3118.6,3.20856704]
[1765629494741,1.24508688,3118.7,3118.6,0.002]
[1765629502903,0.29948688,3118.7,3118.6,0.002]
[1765629504034,0.75368688,3118.7,3118.6,0.002]
[1765629504622,1.23518688,3118.7,3118.6,0.002]
[1765629505727,0.75368688,3118.7,3118.6,0.002]
[1765629507829,0.75368688,3118.7,3118.6,3.20856704]
[1765629509030,1.20878688,3118.7,3118.6,3.20856704]
[1765629512034,0.75368688,3118.7,3118.6,0.002]
[1765629512237,0.29948688,3118.7,3118.6,0.002]
[1765629518247,0.78548688,3118.7,3118.6,0.002]
[1765629518833,0.29948688,3118.7,3118.6,0.002]
[1765629519836,1.24058688,3118.7,3118.6,0.002]
[1765629531927,0.78548688,3118.7,3118.6,0.002]
[1765629534957,0.73548688,3118.7,3118.6,0.002]
[1765629536260,0.73548688,3118.7,3118.6,0.96503085]
[1765629538051,0.73548688,3118.7,3118.6,4.17159789]
[1765629538248,0.24948688,3118.7,3118.6,4.17159789]
[1765629540360,0.24948688,3118.7,3118.6,4.90982466]
[1765629564488,1.17508688,3118.7,3118.6,0.96503085]
[1765629569665,1.17508688,3118.7,3118.6,4.17159789]
[1765629573068,1.17508688,3118.7,3118.6,0.96503085]
[1765629575364,1.22535224,3118.7,3118.6,0.96503085]
[1765629581309,4.43181647,3118.7,3118.6,0.002]
[1765629581506,5.19562409,3118.7,3118.6,0.002]
[1765629585092,1.98915986,3118.7,3118.6,0.002]
[1765629586903,5.19562409,3118.7,3118.6,0.002]
[1765629587104,10.02350394,3118.7,3118.6,0.002]
[1765629587319,5.32604716,3118.7,3118.6,0.002]
[1765629587612,5.83204716,3118.7,3118.6,0.002]
[1765629589310,1.53865986,3118.7,3118.6,0.002]
[1765629589516,0.29975224,3118.7,3118.6,0.002]
[1765629590220,0.29975224,3118.7,3118.6,0.13041112]
[1765629591706,0.29975224,3118.7,3118.6,3.33697816]
[1765629592019,0.29975224,3118.7,3118.6,0.13041112]
[1765629593823,0.29975224,3118.7,3118.6,3.33697816]
[1765629594717,0.29975224,3118.7,3118.6,3.99175048]
[1765629601020,0.79145224,3118.7,3118.6,0.78518344]
[1765629601895,0.29975224,3118.7,3118.6,0.78518344]
[1765629602222,0.29975224,3118.7,3118.6,3.99175048]
[1765629603213,0.4672,3119.1,3118.6,3.99175048]
[1765629603428,0.29949672,3119.0,3118.6,3.99175048]
[1765629603609,0.29949672,3118.9,3118.6,3.86333936]
[1765629603812,0.29949672,3118.8,3118.7,1.67018476]
[1765629607633,0.29949672,3118.8,3118.7,4.87664899]
[1765629608733,0.4672,3119.1,3118.7,4.87664899]
[1765629608933,0.29945865,3119.0,3118.7,4.16944871]
[1765629609229,0.29945865,3118.9,3118.7,3.20646423]
[1765629609433,0.29945865,3118.8,3118.7,3.20646423]
[1765629609935,0.29945865,3118.8,3118.7,0.87392245]
[1765629613336,0.29945865,3118.8,3118.7,4.08038668]
[1765629613508,0.29945865,3118.8,3118.7,5.19737979]
[1765629614039,0.29945865,3118.8,3118.7,5.70337979]
[1765629615328,0.199,3119.4,3118.7,8.90984402]
[1765629615533,0.76650415,3119.3,3118.7,8.90984402]
[1765629615708,0.29930415,3119.2,3118.7,8.03592157]
[1765629615909,0.29930415,3119.1,3118.8,1.26322275]
[1765629616236,0.29930383,3119.0,3118.8,0.4967186]
[1765629616439,0.29930383,3118.9,3118.8,0.4967186]
[1765629616939,0.29930383,3118.9,3118.8,0.9639186]
[1765629618445,0.29930383,3118.9,3118.8,4.17028002]
[1765629619167,1.25820383,3118.9,3118.8,4.17028002]
[1765629619854,0.79100383,3118.9,3118.8,4.17028002]
[1765629622463,0.79100383,3118.9,3118.8,3.67356142]
[1765629622620,1.25050383,3118.9,3118.8,3.67356142]
[1765629623331,0.79100383,3118.9,3118.8,3.67356142]
[1765629624633,0.29930383,3118.9,3118.8,3.67356142]
[1765629637567,0.29946048,3118.9,3118.8,3.67356142]
[1765629639766,1.25706048,3118.9,3118.8,3.67356142]
[1765629641263,0.29946048,3118.9,3118.8,4.80026395]
[1765629643285,0.79106048,3118.9,3118.8,4.80026395]
[1765629643569,0.79106048,3118.9,3118.8,3.67356142]
[1765629644471,1.25706048,3118.9,3118.8,3.67356142]
[1765629644887,1.2575535,3118.9,3118.8,3.67356142]
[1765629645869,0.7915535,3118.9,3118.8,3.67356142]
[1765629646082,0.2999535,3118.9,3118.8,3.67356142]
[1765629647952,0.7915535,3118.9,3118.8,3.67356142]
[1765629648157,1.2575535,3118.9,3118.8,3.67356142]
[1765629649176,1.2575535,3118.9,3118.8,3.79350342]
[1765629656481,0.7915535,3118.9,3118.8,3.79350342]
[1765629658252,1.2762535,3118.9,3118.8,3.79350342]
[1765629660379,1.2262535,3118.9,3118.8,3.79350342]
[1765629661674,1.2262535,3118.9,3118.8,0.587142]
[1765629663265,1.2262535,3118.9,3118.8,3.79350342]
[1765629663584,0.2499535,3118.9,3118.8,3.79350342]
[1765629663779,0.2499535,3118.9,3118.8,4.88160035]
[1765629663984,0.199,3119.4,3118.8,8.08796177]
[1765629664166,0.6837,3119.4,3118.8,6.99986484]
[1765629664365,0.6837,3119.4,3118.8,6.53266484]
[1765629664567,0.4847,3119.3,3118.9,0.96296593]
[1765629665676,0.4847,3119.3,3119.0,3.20615581]
[1765629666886,0.4847,3119.3,3119.0,3.71115581]
[1765629667076,0.4847,3119.3,3119.0,3.20615581]
[1765629667276,0.4847,3119.3,3119.1,0.505]
[1765629667994,0.4847,3119.3,3119.1,3.71100848]
[1765629669381,0.199,3119.4,3119.1,3.71100848]
[1765629669763,0.6837,3119.4,3119.1,3.71100848]
[1765629671507,0.6837,3119.4,3119.1,0.505]
[1765629671713,0.199,3119.4,3119.1,0.505]
[1765629672017,0.4847,3119.3,3119.1,0.505]
[1765629672303,0.4905,3119.2,3119.1,0.505]
[1765629672508,0.7905001,3119.2,3119.1,0.505]
[1765629673507,0.7905001,3119.2,3119.1,3.71105302]
[1765629674788,0.7905001,3119.2,3119.1,0.505]
[1765629679096,0.7905001,3119.2,3119.1,3.71105302]
[1765629680197,0.3000001,3119.2,3119.1,3.71105302]
[1765629685270,0.30007955,3119.2,3119.1,3.71105302]
[1765629687200,0.30007955,3119.2,3119.1,4.40277388]
[1765629692909,0.79727955,3119.2,3119.1,1.19672086]
[1765629693214,1.25967955,3119.2,3119.1,0.505]
[1765629693809,0.67735255,3119.2,3119.1,0.505]
[1765629694018,1.13975255,3119.2,3119.1,0.505]
[1765629695205,1.13975255,3119.2,3119.1,3.71105302]
[1765629696182,0.67735255,3119.2,3119.1,3.71105302]
[1765629696585,1.13975255,3119.2,3119.1,0.505]
[1765629706782,1.25956284,3119.2,3119.1,0.505]
[1765629709811,1.25956284,3119.2,3118.9,3.20621188]
[1765629710011,0.4972,3119.0,3118.9,3.20621188]
[1765629710210,0.79716284,3119.0,3118.9,3.20621188]
[1765629710510,1.25956284,3119.0,3118.8,3.20636142]
[1765629710712,0.9596,3119.0,3118.9,0.96293811]
[1765629710917,1.25958268,3119.0,3118.9,0.96293811]
[1765629712791,4.46573849,3119.0,3118.6,0.002]
[1765629712990,0.4972,3118.7,3118.6,0.96505558]
[1765629713315,0.79718268,3118.7,3118.6,0.96505558]
[1765629713519,1.25958268,3118.7,3118.6,0.96505558]
[1765629713911,6.08429249,3118.7,3118.6,0.002]
[1765629714105,7.66542613,3118.7,3118.6,0.002]
[1765629714590,10.87189036,3118.7,3118.6,0.002]
[1765629714789,28.0175641,3118.6,3118.5,0.002]
[1765629714990,28.28009394,3118.6,3118.5,0.002]
[1765629715201,23.96038413,3118.6,3118.5,0.002]
[1765629715499,27.18177416,3118.6,3118.5,0.002]
[1765629716217,31.50148397,3118.6,3118.5,0.002]
[1765629716427,32.01421208,3118.6,3118.5,0.002]
[1765629716921,43.61140412,3118.6,3118.5,0.002]
[1765629719118,30.98597929,3118.5,3118.4,0.002]
[1765629719424,30.98597929,3118.2,3117.8,0.002]
[1765629719719,40.91928159,3118.2,3117.8,0.002]
[1765629719942,41.40098159,3118.2,3117.8,0.002]
[1765629720305,41.9137097,3118.2,3117.8,0.002]
[1765629720489,35.477952,3118.2,3117.8,0.002]
[1765629720695,13.23169692,3118.2,3117.8,0.002]
[1765629720894,16.50830027,3118.2,3117.8,0.002]
[1765629721104,12.95261927,3118.2,3117.8,0.002]
[1765629721305,12.95361927,3118.2,3117.8,0.002]
[1765629722044,12.54811527,3118.2,3117.8,0.002]
[1765629722222,9.30135098,3118.2,3117.8,0.002]
[1765629722532,11.14209298,3118.2,3117.8,0.002]
[1765629728339,11.55277355,3118.2,3117.8,0.002]
[1765629728498,33.20018791,3118.2,3117.8,0.002]
[1765629729105,33.32866295,3118.2,3117.8,0.002]
[1765629729510,42.65089795,3118.2,3117.8,0.002]
[1765629730403,46.51886308,3118.2,3117.8,0.002]
[1765629730613,42.1939767,3118.2,3117.8,0.002]
[1765629731334,46.51886308,3118.2,3117.8,0.002]
[1765629731907,46.97578433,3118.2,3117.8,0.002]
[1765629732102,46.51886308,3118.2,3117.8,0.002]
[1765629733806,46.97578433,3118.2,3117.8,0.002]
[1765629734024,0.42653783,3118.2,3117.8,0.002]
[1765629734225,3.50473266,3118.5,3117.9,1.64780029]
[1765629734535,0.2977128,3118.4,3117.9,0.002]
[1765629735232,0.8047128,3118.4,3117.9,0.002]
[1765629735908,5.12959918,3118.4,3117.9,0.002]
[1765629736108,1.54645591,3118.3,3117.9,0.002]
[1765629736336,3.50469118,3118.2,3117.9,0.002]
[1765629737534,4.88079518,3118.2,3117.9,0.002]
[1765629737737,4.47529118,3118.2,3117.9,0.002]
[1765629737937,5.05576647,3118.2,3117.9,0.002]
[1765629738127,6.54814032,3118.2,3117.9,0.002]
[1765629738513,6.95364432,3118.2,3117.9,0.002]
[1765629739711,6.95420311,3118.2,3117.9,0.002]
[1765629740837,36.95420311,3118.2,3117.9,0.002]
[1765629741140,29.07313129,3118.0,3117.9,0.002]
[1765629741336,37.91357929,3118.0,3117.9,0.002]
[1765629741515,38.07863329,3118.0,3117.9,0.002]
[1765629742144,37.84143829,3118.0,3117.9,0.002]
[1765629742343,29.48215329,3118.0,3117.9,0.002]
[1765629744242,0.98597929,3117.9,3117.8,0.002]
[1765629744446,35.74978807,3117.9,3117.8,0.002]
[1765629746228,38.95707502,3117.9,3117.8,0.002]
[1765629747125,0.405504,3117.6,3117.5,0.002]
[1765629747337,41.0176708,3117.6,3117.5,0.002]
[1765629747643,44.71336083,3117.6,3117.5,0.002]
[1765629748028,44.84187302,3117.6,3117.5,0.002]
[1765629748344,42.57941822,3117.6,3117.5,0.002]
[1765629748538,18.67103722,3117.6,3117.5,0.002]
[1765629748845,15.99446722,3117.6,3117.5,0.002]
[1765629749246,15.48746722,3117.6,3117.5,0.002]
[1765629749557,24.38581422,3117.6,3117.5,0.002]
[1765629750042,11.86662065,3117.6,3117.5,0.002]
[1765629750242,12.37362065,3117.6,3117.5,0.002]
[1765629750428,14.29410665,3117.6,3117.5,0.002]
[1765629750627,13.09240965,3117.6,3117.5,0.002]
[1765629751240,12.11110965,3117.6,3117.5,0.002]
[1765629751556,13.232165,3117.6,3117.5,0.002]
[1765629752420,17.043643,3117.6,3117.5,0.002]
[1765629753119,15.762924,3117.6,3117.5,0.002]
[1765629753444,13.59706162,3117.6,3117.5,0.002]
[1765629753650,18.428948,3117.6,3117.5,0.002]
[1765629754051,20.60544128,3117.6,3117.5,0.002]
[1765629754444,25.75864428,3117.6,3117.5,0.002]
[1765629755423,31.72802128,3117.6,3117.5,0.002]
[1765629756020,22.91626829,3117.5,3117.4,0.002]
[1765629756224,24.17103988,3117.5,3117.4,0.002]
[1765629756424,27.39242991,3117.5,3117.4,0.002]
[1765629757160,38.66983938,3117.5,3117.4,0.002]
[1765629757669,30.405504,3117.4,3116.6,0.6]
[1765629757965,36.08218636,3117.4,3116.6,0.6]
[1765629758866,31.67647536,3117.4,3116.6,0.6]
[1765629759040,26.28699639,3117.4,3116.6,0.6]
[1765629759359,33.79200076,3117.4,3116.6,0.6]
[1765629759589,32.68950076,3117.4,3116.6,0.6]
[1765629760060,26.30789876,3117.4,3116.6,0.6]
[1765629760232,38.78900576,3117.4,3116.6,0.6]
[1765629760976,34.49584576,3117.4,3116.6,0.6]
[1765629763371,33.00547876,3117.4,3116.6,0.6]
[1765629763978,33.00507207,3117.4,3116.6,0.6]
[1765629764278,12.51097107,3117.4,3116.6,0.6]
[1765629764574,35.53595807,3117.4,3116.6,0.6]
[1765629765372,34.38249407,3117.4,3116.6,0.6]
[1765629765553,27.17124307,3117.4,3116.6,0.6]
[1765629766448,24.91118515,3117.4,3116.6,0.6]
[1765629766649,23.49031407,3117.4,3116.6,0.6]
[1765629767370,13.01797107,3117.4,3116.6,0.6]
[1765629767570,0.58047529,3117.3,3116.6,0.6]
[1765629767747,22.31200091,3117.3,3116.6,0.6]
[1765629768044,22.78630091,3117.3,3116.6,0.6]
[1765629768477,22.95788991,3117.3,3116.6,0.6]
[1765629769547,24.89170518,3117.3,3116.6,0.6]
[1765629769750,24.41740518,3117.3,3116.6,0.6]
[1765629769951,24.89170518,3117.3,3116.6,0.6]
[1765629770553,26.99420518,3117.3,3116.6,0.6]
[1765629771167,4.90753221,3117.1,3116.6,0.6]
[1765629771367,5.2058038,3117.1,3116.6,0.6]
[1765629771571,6.88644915,3117.1,3116.6,0.6]
[1765629771769,45.30932017,3117.1,3116.6,0.6]
[1765629771968,45.78362017,3117.1,3116.6,0.6]
[1765629772173,45.91214682,3117.1,3116.6,0.6]
[1765629772772,30.98597929,3117.0,3116.6,0.6]
[1765629773085,35.55658807,3117.0,3116.6,0.6]
[1765629773884,38.76480109,3117.0,3116.6,0.6]
[1765629774653,39.36591714,3117.0,3116.6,0.6]
[1765629774878,9.36591714,3117.0,3116.6,0.6]
[1765629775180,39.36591714,3117.0,3116.6,0.6]
[1765629775379,30.98597929,3116.9,3116.6,0.6]
[1765629775580,40.47721388,3116.9,3116.6,0.6]
[1765629775958,43.68552983,3116.9,3116.6,0.6]
[1765629776558,48.01258675,3116.9,3116.6,0.6]
[1765629777154,0.98597929,3116.8,3116.4,0.6]
[1765629777356,0.98597929,3116.8,3116.2,0.602]
[1765629777357,30.405504,3116.3,3116.2,0.602]
[1765629777560,40.90418077,3116.3,3116.2,0.28884093]
[1765629777861,37.01679177,3116.3,3116.2,0.28884093]
[1765629778062,45.21191444,3116.3,3116.2,0.28884093]
[1765629778263,44.60991444,3116.3,3116.2,0.28884093]
[1765629778482,46.14351172,3116.3,3116.2,0.28884093]
[1765629778784,30.98597929,3116.2,3116.1,0.002]
[1765629779097,32.23986693,3116.2,3116.1,0.002]
[1765629779470,19.47386309,3116.2,3116.1,0.002]
[1765629779686,13.89698901,3116.2,3116.1,0.3681]
[1765629779877,16.9816843,3116.2,3116.1,0.002]
[1765629780201,19.63835694,3116.2,3116.1,0.3681]
[1765629780589,19.63835694,3116.2,3116.1,0.002]
[1765629780765,9.79781736,3116.2,3116.1,0.002]
[1765629780970,9.79781736,3116.2,3116.1,0.3681]
[1765629780971,4.18251807,3116.2,3116.1,0.3681]
[1765629781170,4.68951807,3116.2,3116.1,0.7342]
[1765629781672,4.68951807,3116.2,3116.1,0.3681]
[1765629782504,5.09502207,3116.2,3116.1,0.3681]
[1765629783095,4.68951807,3116.2,3116.1,0.7342]
[1765629783703,4.08807091,3116.2,3116.1,0.7342]
[1765629783898,0.29855898,3116.2,3116.1,0.7342]
[1765629784075,3.50759562,3116.2,3116.1,0.3681]
[1765629784280,3.50759562,3116.2,3116.1,0.7342]
[1765629784503,3.50759562,3116.2,3116.1,0.002]
[1765629784676,4.01459562,3116.2,3116.1,0.3681]
[1765629786572,5.49999046,3116.2,3116.1,0.3681]
[1765629788675,5.49999046,3116.2,3116.1,0.002]
[1765629789002,5.49999046,3116.2,3116.1,0.3681]
[1765629789902,5.49994984,3116.2,3116.1,0.3681]
[1765629790107,4.014555,3116.2,3116.1,0.7342]
[1765629790786,3.507555,3116.2,3116.1,0.7342]
[1765629790988,4.014555,3116.2,3116.1,0.7342]
[1765629791420,3.507555,3116.2,3116.1,0.7342]
[1765629791599,4.014555,3116.2,3116.1,0.7342]
[1765629792804,4.014555,3116.2,3116.1,0.002]
[1765629792988,4.014555,3116.2,3116.1,0.3681]
[1765629793313,4.014555,3116.2,3116.1,0.7342]
[1765629793908,0.29851836,3116.2,3116.1,0.7342]
[1765629799940,0.29851836,3116.2,3116.1,8.77666529]
[1765629803421,0.29851836,3116.2,3116.1,0.7342]
[1765629804531,3.507555,3116.2,3116.1,0.3681]
[1765629804919,0.29851836,3116.2,3116.1,0.7342]
[1765629812226,0.29851836,3116.2,3116.1,0.3681]
[1765629812429,0.29851836,3116.2,3116.1,0.7342]
[1765629814451,0.29851836,3116.2,3116.1,3.94333962]
[1765629815172,0.29851836,3116.2,3116.1,0.7342]
[1765629815541,0.29851836,3116.2,3116.1,3.94333962]
[1765629816240,0.29851836,3116.2,3116.1,0.7342]
[1765629817378,0.29851836,3116.2,3116.1,3.94333962]
[1765629817681,0.29851836,3116.2,3116.1,0.7342]
[1765629820565,0.29851836,3116.2,3116.1,3.94333962]
[1765629820739,0.29851836,3116.2,3116.1,4.65859955]
[1765629821135,0.29851836,3116.2,3116.1,1.44945993]
[1765629821336,0.79151836,3116.2,3116.1,0.002]
[1765629821551,4.000555,3116.2,3116.1,0.002]
[1765629822873,0.79151836,3116.2,3116.1,0.002]
[1765629823066,4.000555,3116.2,3116.1,0.002]
[1765629823368,4.491055,3116.2,3116.1,0.002]
[1765629823541,10.09535084,3116.2,3116.1,0.002]
[1765629825546,10.09626633,3116.2,3116.1,0.002]
[1765629825840,0.4905,3116.1,3115.2,3.57814744]
[1765629826047,0.29943385,3116.0,3115.2,3.57814744]
[1765629826242,0.29943385,3115.9,3115.2,3.57814744]
[1765629826448,0.29943385,3115.8,3115.2,3.57814744]
[1765629826672,0.29943385,3115.7,3115.2,4.38598815]
[1765629826876,0.29943385,3115.6,3115.2,4.38598815]
[1765629827052,0.29943385,3115.5,3115.2,4.38598815]
[1765629827374,0.29943385,3115.4,3115.2,4.38598815]
[1765629827568,3.20948393,3115.8,3115.2,4.38598815]
[1765629827764,0.29936974,3115.7,3115.2,3.57814744]
[1765629828077,0.29936974,3115.6,3115.2,3.57814744]
[1765629828249,0.29936974,3115.5,3115.3,0.3661]
[1765629828451,0.29936974,3115.4,3115.3,0.3661]
[1765629828668,0.29936974,3115.4,3115.3,0.7322]
[1765629829661,0.29936974,3115.4,3115.3,3.94216372]
[1765629830153,0.29936974,3115.4,3115.3,0.7322]
[1765629830980,0.29936974,3115.4,3115.3,0.3661]
[1765629831280,4.00223043,3115.4,3115.2,0.002]
[1765629831479,0.29936974,3115.3,3115.2,0.002]
[1765629831855,0.29936974,3115.3,3115.2,0.3681]
[1765629833353,0.79236974,3115.3,3115.2,0.002]
[1765629833565,0.29936974,3115.3,3115.2,0.3681]
[1765629833766,0.29936974,3115.3,3115.2,0.7342]
[1765629834985,0.29936974,3115.3,3115.2,0.3681]
[1765629835156,4.33175653,3115.3,3115.2,0.002]
[1765629835357,4.80865653,3115.3,3115.2,0.002]
[1765629835573,1.12179281,3115.3,3115.2,0.002]
[1765629835773,0.29936974,3115.3,3115.2,0.3681]
[1765629835981,0.29936974,3115.3,3115.2,0.7342]
[1765629837389,0.29936974,3115.3,3115.2,0.002]
[1765629837566,0.29936974,3115.3,3115.2,0.3681]
[1765629838667,0.29936974,3115.3,3115.2,0.002]
[1765629838983,0.77086974,3115.3,3115.2,0.002]
[1765629839188,0.29936974,3115.3,3115.2,0.002]
[1765629839490,0.29936974,3115.3,3115.2,0.3681]
[1765629841193,0.77086974,3115.3,3115.2,0.002]
[1765629842311,0.29936974,3115.3,3115.2,0.8257]
[1765629842998,0.29936974,3115.3,3115.2,0.4596]
[1765629843367,0.77086974,3115.3,3115.2,0.002]
[1765629844824,0.29936974,3115.3,3115.2,0.3681]
[1765629846476,0.29936974,3115.3,3115.2,0.002]
[1765629846477,4.80866297,3115.3,3115.2,0.002]
[1765629846681,4.45773346,3115.3,3115.2,0.002]
[1765629849884,9.19368556,3115.3,3115.2,0.002]
[1765629850278,9.86860801,3115.3,3115.2,0.002]
[1765629851810,38.64170101,3115.3,3115.2,0.002]
[1765629852012,31.48494604,3115.3,3115.2,0.002]
[1765629852208,29.04927504,3115.3,3115.2,0.002]
[1765629852910,14.74778729,3115.1,3115.0,0.6]
[1765629853115,16.02565703,3115.1,3115.0,0.6]
[1765629853423,5.455401,3113.7,3112.1,0.6]
[1765629853623,1.21187374,3113.6,3112.7,0.3701]
[1765629853913,0.29936974,3113.5,3113.1,0.787]
[1765629854111,0.29936974,3113.4,3113.1,3.99922296]
[1765629854287,0.29936974,3113.3,3113.2,1.09125504]
[1765629854480,0.29936974,3113.6,3113.2,4.30338403]
[1765629854681,0.29936974,3113.5,3113.3,0.3701]
[1765629854883,0.29936974,3113.4,3113.3,0.3701]
[1765629855107,0.29936974,3113.4,3113.2,3.93328403]
[1765629855278,0.29936974,3113.4,3113.1,0.787]
[1765629855279,0.29821898,3113.3,3113.1,0.6]
[1765629855476,0.29821898,3113.7,3113.2,3.39912899]
[1765629855710,0.29821898,3113.6,3113.2,6.98135798]
[1765629855888,0.29821898,3113.5,3113.3,0.3701]
[1765629856093,0.29821898,3114.0,3113.3,0.3701]
[1765629856299,0.29821898,3113.9,3113.4,0.3701]
[1765629856493,0.29821898,3113.8,3113.4,3.21188121]
[1765629856692,0.29821898,3113.7,3113.5,0.3701]
[1765629856898,0.29821898,3114.0,3113.5,0.3701]
[1765629857098,0.58047529,3114.1,3113.5,0.3701]
[1765629857099,0.29821898,3113.9,3113.5,0.3701]
[1765629857305,0.29821898,3113.8,3113.5,0.3701]
[1765629857509,0.87869427,3114.0,3113.5,0.3701]